Cogmind - Beta 10.2 @@@ ROGUE MODE // 2022.02.17 @ 23:09:11 Player: russur Result: Self-destructed Performance ------------- Evolutions (1) 500 Regions Visited (3) 600 Robots Destroyed (21) 105 Value Destroyed (544) 544 Prototype IDs (1) 20 Alien Tech Used (0) 0 Bonus (190) 190 TOTAL SCORE: 1959 Bonus ------- Follower Combat Kills 190 Cogmind --------- Core Integrity 331/400 Matter 300/300 Energy 62/100 System Corruption 0% Temperature Cool (0) Movement Core (200) Ox3 Location -9/Storage Parts ------- > --- POWER (1) -------- (None) > --- PROPULSION (4) --- (None) > --- UTILITY (2) ------ Drone Bay (0/2) > --- WEAPON (2) ------- Mace Flail > --- INVENTORY (4) ---- Ion Engine Heat Sink Mace Flail Peak State ------------ > --- POWER ------------ Light Ion Engine > --- PROPULSION ------- Improved Flight Unit Improved Flight Unit Improved Flight Unit > --- UTILITY ---------- Shield Generator Drone Bay > --- WEAPON ----------- Mace Flail > --- INVENTORY -------- Ion Engine Heat Sink Mace Flail [Rating: 21] Favorites ----------- Power Ion Engine Engine Ion Engine Propulsion Light Treads Treads Light Treads Leg Aluminum Leg Wheel Wheel Flight Unit Improved Flight Unit Utility Drone Bay Device Drone Bay Storage Small Storage Unit Protection Weapon Shielding Weapon Mace Energy Gun EM Pulse Gun Energy Cannon Beam Cannon Impact Weapon Mace Build | -11 -10 -9 -9 ------- Run | Scr Mat Mat Sto Slots Evolved 2 | . . 2 . Power . | . . . . Propulsion 2 | . . 2 . Utility . | . . . . Weapon . | . . . . Parts Attached 39 | 7 18 2 12 Power 6 | 2 3 . 1 Engine 6 | 2 3 . 1 Core . | . . . . Reactor . | . . . . Propulsion 15 | 2 5 2 6 Treads 9 | 2 5 . 2 Leg 1 | . . . 1 Wheel 2 | . . 2 . Hover . | . . . . Flight 3 | . . . 3 Utility 9 | 1 3 . 5 Device 7 | . 2 . 5 Storage 1 | 1 . . . Processor . | . . . . Hackware . | . . . . Protection 1 | . 1 . . Artifact . | . . . . Weapon 9 | 2 7 . . Energy Gun 4 | 2 2 . . Energy Cannon 3 | . 3 . . Ballistic Gun . | . . . . Ballistic Cannon . | . . . . Launcher . | . . . . Special Weapon . | . . . . Impact Weapon 2 | . 2 . . Slashing Weapon . | . . . . Piercing Weapon . | . . . . Special Melee Weapon . | . . . . Unidentified Prototypes 1 | . . . 1 Parts Lost 1 | . . . 1 Power . | . . . . Propulsion . | . . . . Utility 1 | . . . 1 Weapon . | . . . . Highest Loss Streak 1 | . . . 1 Average Slot Usage (%) 97 | . 97 94 97 Engine 12 | . 13 11 11 Treads 24 | . 27 22 20 Leg 1 | . . . 2 Wheel 8 | . . 16 15 Flight 1 | . . . 3 Device 13 | . 5 11 20 Storage 6 | . 14 11 . Protection 3 | . 7 . . Energy Gun 6 | . 13 . . Energy Cannon 5 | . 11 . . Impact Weapon 12 | . 2 22 22 Naked Turns . | . . . . Heaviest Build 21 | 12 15 14 21 Greatest Support 60 | 40 40 20 60 Greatest Overweight (x) 3 | 3 . . 2 Average Overweight (x) . | . . . . Largest Inventory Capacity 6 | 6 6 6 6 Average Capacity 5 | 5 6 6 4 Most Carried 6 | 4 6 5 6 Average Carried 4 | 2 5 4 4 Final Capacity 6 | 6 6 6 4 Final Carried 6 | 4 6 4 4 Class Distribution -------------------- 72% | Mutant 16% | Commander-Mutant 6% | Scavenger-Mutant 5% | Sprinter Dominant Class ---------------- Mutant | -10/Materials Mutant | -9/Materials Mutant | -9/Storage Resources | -11 -10 -9 -9 ----------- Run | Scr Mat Mat Sto Matter Collected 585 | 223 221 . 141 Remotely . | . . . . Salvage Created 760 | . 461 . 299 Parts 27 | . 20 . 7 Haulers Intercepted . | . . . . Recyclers Shooed 2 | . 1 . 1 Parts Field Recycled . | . . . . Retrieved Matter . | . . . . Parts Self-Destructed . | . . . . Prevented . | . . . . Kills | -11 -10 -9 -9 ------- Run | Scr Mat Mat Sto Combat Hostiles Destroyed 20 | . 12 . 8 Melee 3 | . . . 3 Guns 3 | . 3 . . Cannons 5 | . 5 . . AOE 4 | . 4 . . Classes Destroyed 3 | . 2 . 1 Recycler 1 | . . . 1 Swarmer 7 | . 3 . 4 Grunt 13 | . 9 . 4 Best Kill Streak 4 | . 3 . 4 Combat Bots Only 4 | . 3 . 4 Max Kills in Single Turn 2 | . 2 . 1 Gunslinging . | . . . . Exploded 2 | . 2 . . Melee 1 | . . . 1 Uniques/NPCs Destroyed . | . . . . Combat | -11 -10 -9 -9 -------- Run | Scr Mat Mat Sto Damage Taken 927 | . 354 . 573 Core 103 | . 34 . 69 Absorbed by Shields 40 | . . . 40 Core Remaining (%) 93 | 100 86 . . Volleys Fired 28 | . 28 . . Largest 2 | . 2 . . Hottest 100 | . 100 . . Shots Fired 54 | . 54 . . Gun 26 | . 26 . . Cannon 28 | . 28 . . Launcher . | . . . . Special . | . . . . Kinetic . | . . . . Thermal 28 | . 28 . . Explosive . | . . . . Electromagnetic 26 | . 26 . . Robot Hit Streak 6 | . 6 . . Robot Miss Streak 3 | . 3 . . Penetration Max . | . . . . Secondary Targets . | . . . . Shots Hit Robots 68 | . 37 . 31 Core Hits 20 | . 17 . 3 Critical Hits . | . . . . Critical Kills . | . . . . Critical Parts Destroyed . | . . . . Melee Attacks 39 | . . . 39 Impact 39 | . . . 39 Slashing . | . . . . Piercing . | . . . . Sneak Attacks 3 | . . . 3 Combat Hostiles . | . . . . Follow-up Attacks 5 | . . . 5 Damage Inflicted 1509 | . 688 . 821 Guns 242 | . 242 . . Cannons 281 | . 281 . . Explosions 165 | . 165 . . Melee 821 | . . . 821 Ramming . | . . . . Kinetic . | . . . . Thermal 446 | . 446 . . Explosive . | . . . . Electromagnetic 242 | . 242 . . Impact 821 | . . . 821 Slashing . | . . . . Piercing . | . . . . Highest Corruption . | . . . . Average Corruption . | . . . . Corruption Purged . | . . . . Overload Shots . | . . . . Overflow Damage 107 | . 5 . 102 Projectiles 5 | . 5 . . Explosions . | . . . . Melee 102 | . . . 102 Knockbacks 2 | . . . 2 Impact 1 | . . . 1 Kinetic . | . . . . Secondary 1 | . . . 1 Self-Inflicted Damage . | . . . . Shots . | . . . . Rammed . | . . . . Targets Rammed . | . . . . Kicked . | . . . . Crushed . | . . . . Highest Temperature 370 | . 370 . . Average Temperature 129 | . 129 . . Received Heat Transfer 254 | . 192 . 62 Effects 3 | . 3 . . Shutdowns 1 | . 1 . . Interference 2 | . 2 . . Siege Activations . | . . . . Robots Corrupted . | . . . . Combat Hostiles . | . . . . Parts Fried 5 | . . . 5 Impact Corruptions 9 | . . . 9 Robots Melted . | . . . . Combat Hostiles . | . . . . Parts Melted . | . . . . Heat Transferred 842 | . 842 . . Parts Sabotaged . | . . . . Parts Stolen . | . . . . Parts Stripped . | . . . . Power Chain Reactions 2 | . 2 . . Missiles Intercepted . | . . . . Alert | -11 -10 -9 -9 ------- Run | Scr Mat Mat Sto Peak Influence 350 | . 350 63 222 Initial 63 | . . 63 26 Average 120 | . 172 63 93 Maximum Alert Level 1 | . 1 . 1 Low Security (%) 77 | 100 60 100 89 Level 1 22 | . 39 . 10 Level 2 . | . . . . Level 3 . | . . . . Level 4 . | . . . . Level 5 . | . . . . High Security . | . . . . Max Security . | . . . . Squads Dispatched 4 | . 2 . 2 Investigation 2 | . 1 . 1 Extermination . | . . . . Reinforcement 2 | . 1 . 1 Assault . | . . . . Garrison . | . . . . Intercept . | . . . . Construction Impeded . | . . . . Haulers Reinforced . | . . . . Stealth | -11 -10 -9 -9 --------- Run | Scr Mat Mat Sto Distress Signals 2 | . . . 2 Communications Jammed . | . . . . Distress Signals . | . . . . Times Spotted 32 | . 16 . 16 Peak Tracking Total 5 | . 3 . 5 Tactical Retreats 2 | . 1 . 1 Traps | -11 -10 -9 -9 ------- Run | Scr Mat Mat Sto Traps Triggered 4 | . 3 . 1 Indirectly . | . . . . Trap Hack Attempts . | . . . . Triggered . | . . . . Disarmed . | . . . . Reprogrammed . | . . . . Reused . | . . . . Traps Extracted . | . . . . Installed . | . . . . Triggered . | . . . . Machines | -11 -10 -9 -9 ---------- Run | Scr Mat Mat Sto Machines Disabled . | . . . . Max in Single Turn . | . . . . Machines Sabotaged . | . . . . Garrisons Compromised . | . . . . Overloaded Fab Kills . | . . . . Fab Network Shutdowns . | . . . . Hacking | -11 -10 -9 -9 --------- Run | Scr Mat Mat Sto Machines Accessed 4 | . . . 4 Terminals 3 | . . . 3 Fabricators . | . . . . Repair Stations . | . . . . Recycling Units 1 | . . . 1 Scanalyzers . | . . . . Garrison Access . | . . . . Total Hacks 4 | . . . 4 Successful 3 | . . . 3 Failed 1 | . . . 1 Catastrophic 1 | . . . 1 Database Lockouts . | . . . . Manual . | . . . . Terminals 3 | . . . 3 Fabricators . | . . . . Repair Stations . | . . . . Recycling Units 1 | . . . 1 Scanalyzers . | . . . . Garrison Access . | . . . . Terminal Hacks 2 | . . . 2 Open Door 2 | . . . 2 Fabricator Hacks . | . . . . Repair Station Hacks . | . . . . Recycling Unit Hacks 1 | . . . 1 Retrieve Components 1 | . . . 1 Scanalyzer . | . . . . Garrison Access Hacks . | . . . . Unauthorized Hacks . | . . . . Terminals . | . . . . Fabricators . | . . . . Repair Stations . | . . . . Recycling Units . | . . . . Scanalyzers . | . . . . Garrison Access . | . . . . Data Cores Recovered . | . . . . Used . | . . . . Hacking Detections 2 | . . . 2 Full Trace Events . | . . . . Feedback Events . | . . . . Feedback Blocked . | . . . . Robot Schematics Acquired . | . . . . Robots Built . | . . . . Matter . | . . . . Time . | . . . . Total Robot Build Rating . | . . . . Part Schematics Acquired . | . . . . Parts Built . | . . . . Matter . | . . . . Time . | . . . . Total Part Build Rating . | . . . . Parts Repaired . | . . . . Time . | . . . . Parts Recycled . | . . . . Recycled Matter . | . . . . Retrieved Matter . | . . . . Retrieved Components 9 | . . . 9 Parts Scanalyzed . | . . . . Part Schematics Acquired . | . . . . Parts Damaged . | . . . . Bothacking | -11 -10 -9 -9 ------------ Run | Scr Mat Mat Sto Used RIF Installer . | . . . . Robots Hacked . | . . . . Non-combat . | . . . . Combat . | . . . . Robot Hacks Applied . | . . . . Relay Couplers Released . | . . . . Robots Rewired . | . . . . Allies Hacked . | . . . . Hacks Repelled . | . . . . Allies | -11 -10 -9 -9 -------- Run | Scr Mat Mat Sto Total Allies 10 | . . . 10 Largest Group 10 | . . . 10 Highest-Rated Group 88 | . . . 88 Highest-Rated Ally 16 | . . . 16 Total Orders 6 | . . . 6 STAY 1 | . . . 1 ROAM 1 | . . . 1 FOLLOW 1 | . . . 1 EXPLORE 3 | . . . 3 Ally Attacks 73 | . . . 73 Total Damage 664 | . . . 664 Kills 7 | . . . 7 Allies Corrupted . | . . . . Allies Melted . | . . . . Intel | -11 -10 -9 -9 ------- Run | Scr Mat Mat Sto Robot Analysis Total . | . . . . Derelict Logs Recovered . | . . . . Drone Launches 6 | . . . 6 Drone Recoveries 3 | . . . 3 Exploration | -11 -10 -9 -9 ------------- Run | Scr Mat Mat Sto Turns Passed 1051 | 87 461 11 492 Spaces Moved 530 | 50 208 11 261 Core 15 | 15 . . . Treads 469 | 35 208 . 226 Legs . | . . . . Wheels 12 | . . 11 1 Hover . | . . . . Flight 34 | . . . 34 Fastest Speed 29 | 50 160 80 29 Average Speed 149 | 149 160 80 143 Slowest Speed 200 | 200 160 80 175 Overloaded Moves . | . . . . Propulsion Burnouts . | . . . . Robots Hopped . | . . . . Cave-ins Triggered . | . . . . Exploration Rate (%) 20 | 3 31 4 44 Regions Visited 3 Branch Regions 1 Pre-discovered Areas . | . . . . Known Exits Taken . | . . . . Unknown Exits Taken 3 | 1 1 1 . Scrap Searched . | . . . . Spaces Dug . | . . . . Terrain Destroyed 15 | . 15 . . Melee . | . . . . Projectile . | . . . . AOE 15 | . 15 . . Terrain Rammed . | . . . . Walls Destroyed . | . . . . Machines Disabled . | . . . . Actions | -11 -10 -9 -9 --------- Run | Scr Mat Mat Sto Total 689 | 59 285 12 333 Wait 8 | . 3 . 5 Move 527 | 49 207 10 261 Hop . | . . . . Pick Up 19 | 3 13 . 3 Fast Attach 20 | 6 7 . 7 Attach 11 | . 6 2 3 Detach 4 | . 2 . 2 Swap 8 | 1 5 . 2 Drop 31 | . 14 . 17 Fire 28 | . 28 . . Melee 33 | . . . 33 Ram . | . . . . Kick . | . . . . Crush . | . . . . Escape Stasis . | . . . . Rewire . | . . . . Trap . | . . . . Miscellaneous . | . . . . Route ------- -11/Scrapyard -10/Materials -9/Materials -9/Storage History --------- Turn | Location | Event 2 | -11/Scrapyard | Met Revision 17 39 | -11/Scrapyard | Discovered new exit (range 16) 88 | -11/Scrapyard | Entered Materials 303 | -10/Materials | Build established: Mutant 452 | -10/Materials | Discovered new exit (range 16) 549 | -10/Materials | Entered another Materials area 549 | -9/Materials | Evolved 2 slots: Propulsion x2 551 | -9/Materials | Discovered new exit (range 8) 560 | -9/Materials | Entered Storage 754 | -9/Storage | Assisted by bots powering up and referring to "LRC-V3" 1052 | -9/Storage | Self-destructed Last Messages --------------- 01010_ G-34 Mercenary system corrupted by crushing effect. 01011_ G-34 Mercenary system terminally corrupted. 01011_ Ion Engine fried. 01023_ Destroyed Ion Engine. 01023_ G-34 Mercenary system corrupted by crushing effect. 01024_ G-34 Mercenary system terminally corrupted. 01024_ Sml. Laser fried. 01026_ G-34 Mercenary knocked back. 01029_ Shield Generator destroyed. 01038_ G-34 Mercenary destroyed. 01039_ Acquired 35 matter. 01041_ Mace follow-up attack on G-34 Mercenary. 01041_ Destroyed Heat Sink. 01041_ G-34 Mercenary system corrupted by crushing effect. 01042_ G-34 Mercenary system terminally corrupted. 01046_ R-06 Scavenger collects Aluminum Leg. 01049_ Terminal unresponsive. 01050_ Connecting with Repair Station... 01050_ Dropped Imp. Flight Unit. 01051_ Dropped Lgt. Ion Engine. Map ----- +----------------------------------------------------+ | ?????????????????????????????????? | | ?????????????????????????????????? | | ?????????????????????????????????? | | ?????????????????????????????????? | | ???#######???????????????????????? | | ???? [ ???????????????????????? | | ??? %% ???????????????????????? | | ??? """ "???????????????????????? | | ???? """ "???????????????????????? | | ###???"" "?????????????? "???????? | | #???##/####+##### "R????????? | | ##### *=! ""????????? | | + %|%! ######?????????????? | | ##### ### ##??????????????????? | | #???# #?# #???????????????????? | | #??## ### #???????????????????? | | #### ## #???????????????????? | | + % ##+######??????????????? | | #### % # #??????????????? | | ####?# # """ #??????????????? | | #?## ## """ #??????????????? | | #### ## """ #??????????????? | | % # #????#####?????? | | #+##### %## """ #????#"""#?????? | | ## ## """ #??###"R"#?????? | | ## ## """ #### #"@"###???? | | % ##% ## ## ==* ###?? | | ## ## ## ""#?? | | """ ## ## #T Y"#?? | | """ ##% #####+##### ""#?? | | """ / % =%[ [ # ###?? | | = ##%== = %= # """"" !#???? | | ########+######## =+%""""" #???? | | ???????#%%#####?# #!""""" #???? | | ???????#[== #?# ###########???? | | ???????# =====#?# T?????????????? | | ???????##T#####?# ##????????????? | | ????????###?????""""?????????????? | | ?????????????????????????????????? | | ?????????????????????????????????? | | ?????????????????????????????????? | | ?????????????????????????????????? | | ?????????????????????????????????? | | ?????????????????????????????????? | | ?????????????????????????????????? | | ?????????????????????????????????? | | ?????????????????????????????????? | | ?????????????????????????????????? | | ?????????????????????????????????? | | | +----------------------------------------------------+ Best States ------------- Heat Dissipation 42 Energy Generation 10 Energy Capacity 250 Matter Stores 300 Matter Capacity 300 Sight Range 16 Terrain Scan Density 10 Weapon Shielding 33 Evasion (%) 64 Recoil Reduction 3 Item Schematics ----------------- None Robot Schematics ------------------ None Fabricated ------------ Nothing Alien Tech Used ----------------- None Achievements -------------- None Challenges ------------ None Game ------ Seed CoordinationMatterStabilizer Manual? 0 Play Time 00:22:42 Cumulative 8.7 hours Start 2022.02.17 @ 22:48:43 End 2022.02.17 @ 23:09:11 Sessions 1 Manual Loads 0 Difficulty Rogue Special Mode None Game No. 26 Rogue 26 Adventurer 0 Explorer 0 Win Type - Total 0 Types 0/0/0/0/0/0/0/0/0 Lore% 14 Gallery% 16 Achievement% 14 Wizard Run 0 Options --------- ASCII 0 Keyboard 0 Movement Numpad Keybinds 0 Fullscreen 1 Font 18/SmallcapsGlow Map View 76x50 Tactical HUD 1 Map Filters NONE Filters NONE Steam 1 RUN: 57cab41a-4de2-4fa5-9109-abf46310125f